bitfinex/quotes_SOLUSD_20260109
["timestamp","ask_amount","ask_price","bid_price","bid_amount"]
[1767937101541,0.68450911,139.49,139.45,10.89000978]
[1767937101761,0.68450911,139.47,139.43,23.9909717]
[1767937103058,0.68450911,139.49,139.44,3.7190425]
[1767937103243,0.68450911,139.49,139.45,0.25883148]
[1767937105356,0.68450911,139.47,139.43,2.47190713]
[1767937105941,7.85361231,139.49,139.45,0.25883148]
[1767937106341,0.68450911,139.48,139.45,0.25883148]
[1767937107665,0.68450911,139.48,139.44,9.64334932]
[1767937108266,0.68450911,139.51,139.47,2.47190713]
[1767937108567,0.68450911,139.51,139.48,0.19883149]
[1767937111976,7.8519403,139.52,139.48,2.41190714]
[1767937112172,23.16456278,139.53,139.49,0.19883149]
[1767937112478,0.68450911,139.52,139.49,0.19883149]
[1767937112774,0.68450911,139.52,139.48,9.58105709]
[1767937115260,0.68450911,139.52,139.48,9.3822256]
[1767937116364,0.66298091,139.51,139.48,2.21307565]
[1767937116569,0.66298091,139.51,139.46,0.19883149]
[1767937116773,0.66298091,139.51,139.48,2.21307565]
[1767937117675,0.66298091,139.51,139.48,9.38247877]
[1767937117983,22.48017859,139.53,139.49,0.19883149]
[1767937118162,0.66298091,139.52,139.48,9.58131026]
[1767937120079,0.66298091,139.52,139.48,2.21307565]
[1767937120259,0.66298091,139.51,139.47,9.58177606]
[1767937120462,0.66298091,139.5,139.46,9.3834173]
[1767937120684,0.66298091,139.5,139.46,9.58224879]
[1767937120982,0.66298091,139.5,139.47,0.19883149]
[1767937121971,0.66298091,139.5,139.46,9.3834173]
[1767937122375,0.66298091,139.5,139.46,9.58224879]
[1767937123185,0.66298091,139.5,139.46,7.36917314]
[1767937124888,0.28432314,139.53,139.49,0.19883149]
[1767937125091,0.66298091,139.54,139.5,2.21307565]
[1767937125490,7.82887127,139.55,139.5,2.21307565]
[1767937125688,7.82887127,139.55,139.51,2.21307565]
[1767937126505,13.08,139.57,139.51,7.16793771]
[1767937126707,0.66298091,139.58,139.54,2.21307565]
[1767937127006,2.87605656,139.58,139.53,2.21307565]
[1767937127385,0.66298091,139.58,139.53,2.21307565]
[1767937127813,2.87605656,139.58,139.53,2.21307565]
[1767937128185,2.87605656,139.58,139.53,9.37985786]
[1767937131710,0.66298091,139.57,139.53,9.37985786]
[1767937133216,0.66298091,139.57,139.48,62.38432314]
[1767937133392,2.87605656,139.53,139.46,13.08]
[1767937133593,2.87605656,139.53,139.48,2.21307565]
[1767937133898,2.87605656,139.52,139.47,20.13759325]
[1767937134819,2.87605656,139.52,139.48,7.16937649]
[1767937135195,0.66298091,139.52,139.48,7.16937649]
[1767937139117,0.66298091,139.52,139.48,2.21307565]
[1767937140391,2.87605656,139.54,139.49,2.21307565]
[1767937140608,0.66298091,139.54,139.5,2.21307565]
[1767937141015,2.87605656,139.53,139.48,2.21307565]
[1767937141211,0.66298091,139.52,139.48,9.38225283]
[1767937142118,7.1665583,139.54,139.49,2.21307565]
[1767937142119,2.21307565,139.54,139.49,2.21307565]
[1767937142321,0.66298091,139.53,139.49,2.21307565]
[1767937143820,0.66298091,139.53,139.48,2.21307565]
[1767937144597,0.70356158,139.52,139.48,2.21307565]
[1767937145418,0.70356158,139.52,139.47,7.17000071]
[1767937145629,0.70356158,139.5,139.46,22.46347152]
[1767937152813,2.92551876,139.53,139.48,2.21307565]
[1767937153525,2.92551876,139.54,139.49,2.21307565]
[1767937154228,2.92551876,139.54,139.49,9.38197533]
[1767937154528,2.92551876,139.54,139.49,7.16889968]
[1767937155829,0.71244311,139.53,139.49,7.16889968]
[1767937157619,0.71244311,139.53,139.49,9.38197533]
[1767937160415,2.21307565,139.54,139.49,9.38197533]
[1767937160627,2.92551876,139.54,139.49,9.38197533]
[1767937161538,0.71244311,139.56,139.51,2.21307565]
[1767937161720,0.71244311,139.55,139.51,2.21307565]
[1767937162223,0.71244311,139.55,139.5,2.21307565]
[1767937162409,0.71244311,139.55,139.51,7.16794495]
[1767937163832,0.71244311,139.54,139.5,9.38138941]
[1767937164136,0.71244311,139.54,139.5,7.16831376]
[1767937165638,0.71244311,139.53,139.5,7.16831376]
[1767937169643,0.71244311,139.53,139.5,10.62382538]
[1767937176453,0.71244311,139.53,139.5,7.16831376]
[1767937177413,0.71244311,139.53,139.5,10.62382538]
[1767937184562,0.69916165,139.55,139.51,3.45551162]
[1767937184855,0.69916165,139.57,139.52,3.45551162]
[1767937185064,0.69916165,139.56,139.53,3.45551162]
[1767937185245,0.69916165,139.56,139.52,3.45551162]
[1767937186047,0.69916165,139.56,139.52,10.62254395]
[1767937189150,0.69916165,139.56,139.51,7.16794495]
[1767937189356,0.69916165,139.56,139.52,3.45551162]
[1767937193168,0.69916165,139.56,139.51,7.16794495]
[1767937193469,0.69916165,139.56,139.53,7.1669175]
[1767937195591,0.69916165,139.56,139.53,10.62242912]
[1767937195973,5.51133119,139.57,139.53,10.62242912]
[1767937196273,5.51133119,139.57,139.54,3.45551162]
[1767937196473,0.69916165,139.57,139.54,3.45551162]
[1767937197969,0.69916165,139.58,139.55,3.45551162]
[1767937198277,0.69916165,139.58,139.54,7.16624357]
[1767937198278,0.69916165,139.59,139.56,3.45551162]
[1767937200297,0.69916165,139.59,139.56,10.62082071]
[1767937201090,0.69916165,139.59,139.56,7.16530909]
[1767937202295,0.69916165,139.59,139.56,3.45551162]
[1767937202494,0.69916165,139.59,139.57,3.45551162]
[1767937202692,0.76023243,139.6,139.57,3.45551162]
[1767937203673,0.1,139.62,139.59,4.11574405]
[1767937203878,0.1,139.62,139.61,2.00551162]
[1767937204073,0.1,139.64,139.6,3.45551162]
[1767937204292,0.1,139.64,139.59,3.45551162]
[1767937204697,0.1,139.64,139.59,10.61918255]
[1767937204880,0.1,139.64,139.6,3.45551162]
[1767937205688,0.76023243,139.64,139.6,3.45551162]
[1767937205887,0.76023243,139.64,139.61,3.45551162]
[1767937206108,0.76023243,139.64,139.61,4.15382131]
[1767937206796,0.1,139.64,139.62,0.69830969]
[1767937207803,0.1,139.64,139.62,11.31605679]
[1767937211297,0.1,139.64,139.62,4.15382131]
[1767937213283,0.75590251,139.64,139.61,11.28505907]
[1767937213796,0.1,139.64,139.62,4.12238839]
[1767937214001,0.1,139.64,139.62,11.28456039]
[1767937215108,0.1,139.65,139.63,4.12238839]
[1767937215405,0.1,139.65,139.63,11.28409492]
[1767937215802,0.1,139.65,139.64,0.66687677]
[1767937216898,0.1,139.65,139.64,4.12238839]
[1767937217105,0.1,139.66,139.65,0.66687677]
[1767937217292,0.41017968,139.68,139.65,4.12238839]
[1767937218086,0.41017968,139.68,139.65,0.66687677]
[1767937218904,0.67279201,139.67,139.64,4.12238839]
[1767937219113,0.67279201,139.67,139.64,0.66687677]
[1767937220815,0.67279201,139.67,139.64,4.12238839]
[1767937222419,0.67279201,139.67,139.64,11.28353351]
[1767937224612,0.77645476,139.68,139.65,4.12238839]
[1767937225114,0.77645476,139.68,139.65,0.66687677]
[1767937225618,0.77645476,139.68,139.65,11.28298315]
[1767937226605,0.77645476,139.68,139.65,10.03416051]
[1767937231496,0.1,139.68,139.67,2.87356575]
[1767937232400,0.1,139.7,139.68,0.66687677]
[1767937232595,0.1,139.7,139.68,2.87356575]
[1767937232797,0.7631385,139.7,139.67,2.87052378]
[1767937233820,0.7631385,139.7,139.66,9.36680069]
[1767937234124,0.52136277,139.69,139.65,2.20668898]
[1767937235108,0.52136277,139.69,139.66,2.20668898]
[1767937238505,0.52136277,139.69,139.65,2.87052378]
[1767937239422,0.52136277,139.69,139.66,2.20668898]
[1767937240424,0.52136277,139.69,139.66,2.87052378]
[1767937240619,0.52136277,139.69,139.66,10.03072045]
[1767937246632,0.52136277,139.69,139.66,9.36688565]
[1767937247837,0.52136277,139.69,139.66,7.16019667]
[1767937248534,0.52136277,139.69,139.66,7.82403147]
[1767937249518,0.52136277,139.69,139.66,10.03072045]
[1767937250134,0.52136277,139.69,139.66,9.36688565]
[1767937250436,0.52136277,139.69,139.65,2.87052378]
[1767937252138,0.52276635,139.67,139.63,83.00552272]
[1767937252334,0.52276635,139.67,139.63,85.2122117]
[1767937254543,0.52276635,139.67,139.64,10.03172834]
[1767937256272,0.52276635,139.67,139.64,7.82503936]
[1767937256433,0.52276635,139.67,139.65,2.20668898]
[1767937256633,0.6631385,139.69,139.65,2.87052378]
[1767937256837,0.52136277,139.68,139.65,2.87052378]
[1767937260847,5.34527316,139.68,139.65,2.87052378]
[1767937261144,0.66172075,139.67,139.63,2.87052378]
[1767937261352,4.82391039,139.67,139.63,2.87052378]
[1767937263335,0.69471774,139.66,139.63,2.87052378]
[1767937265050,0.69471774,139.66,139.63,0.6638348]
[1767937265546,0.69471774,139.66,139.63,2.87052378]
[1767937266350,0.66471773,139.66,139.63,2.87052378]
[1767937266948,7.15882078,139.69,139.63,9.36844489]
[1767937267151,4.82813695,139.68,139.64,2.91759399]
[1767937267951,4.82813695,139.68,139.64,0.71090501]
[1767937268940,0.66798586,139.67,139.64,0.71090501]
[1767937269147,5.49612281,139.67,139.64,0.71090501]
[1767937271550,0.42746388,139.66,139.62,0.67807554]
[1767937271752,0.66558064,139.65,139.61,2.88476452]
[1767937272334,0.66558064,139.65,139.62,0.67807554]
[1767937272552,0.63558064,139.65,139.62,0.67807554]
[1767937273654,2.20668898,139.67,139.63,0.67807554]
[1767937274847,0.66798586,139.66,139.63,0.67807554]
[1767937275360,0.66798586,139.66,139.62,9.36886244]
[1767937275361,0.39776388,139.65,139.62,0.67807554]
[1767937275562,10.03492268,139.66,139.62,0.67807554]
[1767937278776,2.87467484,139.66,139.62,0.67807554]
[1767937279246,0.66798586,139.66,139.62,0.67807554]
[1767937279447,7.70033195,139.66,139.62,0.67807554]
[1767937279667,2.87467484,139.66,139.62,0.67807554]
[1767937280367,0.66798586,139.66,139.63,0.67807554]
[1767937285554,2.87467484,139.66,139.63,0.67807554]
[1767937285754,2.84467484,139.66,139.63,0.67807554]
[1767937288572,4.08753566,139.66,139.63,0.67807554]
[1767937289178,0.39776388,139.65,139.62,7.84037194]
[1767937289378,0.36776388,139.65,139.62,7.84037194]
[1767937289766,3.4495498,139.65,139.62,0.67807554]
[1767937289964,10.61039426,139.65,139.61,0.67807554]
[1767937290168,3.4495498,139.62,139.58,0.67807554]
[1767937290482,3.4495498,139.61,139.58,0.67807554]
[1767937291065,3.4495498,139.62,139.58,0.67807554]
[1767937291386,4.11753566,139.62,139.58,0.67807554]
[1767937299880,13.36432314,139.64,139.58,0.67807554]
[1767937299881,13.79297688,139.64,139.59,0.66370921]
[1767937300084,3.4495498,139.63,139.59,0.66370921]
[1767937301408,3.4495498,139.63,139.6,0.66370921]
[1767937302110,4.16252668,139.64,139.6,0.66370921]
[1767937302305,3.74337257,139.63,139.6,0.66370921]
[1767937307511,3.74752219,139.61,139.58,0.66370921]
[1767937307695,3.71752219,139.61,139.58,0.66370921]
[1767937308823,3.4495498,139.61,139.58,0.66370921]
[1767937314032,3.71367257,139.61,139.58,0.66370921]
[1767937314522,0.26412277,139.61,139.58,0.66370921]
[1767937315199,4.16252668,139.62,139.58,0.66370921]
[1767937316332,3.4495498,139.61,139.58,0.66370921]
[1767937319509,3.71367257,139.61,139.58,0.66370921]
[1767937321529,0.26412277,139.61,139.58,0.66370921]
[1767937321719,3.71367257,139.61,139.58,0.66370921]
[1767937324228,3.4495498,139.61,139.58,0.66370921]
[1767937325815,4.15296274,139.61,139.58,0.66370921]
[1767937332037,4.10930413,139.59,139.56,13.74772742]
[1767937332211,4.10930413,139.6,139.57,0.66772742]
[1767937341236,3.4495498,139.59,139.57,0.66772742]
[1767937341437,3.41954978,139.59,139.57,0.66772742]
[1767937342044,10.58339449,139.59,139.57,0.66772742]
[1767937342244,10.90020758,139.59,139.57,0.66772742]
[1767937342451,0.65632492,139.58,139.55,13.74772742]
[1767937342743,3.4495498,139.57,139.55,13.74772742]
[1767937343121,3.4495498,139.57,139.55,0.66772742]
[1767937343755,4.0758747,139.58,139.55,0.66772742]
[1767937344445,0.6263249,139.58,139.55,0.66772742]
[1767937344646,4.0758747,139.58,139.55,0.66772742]
[1767937345534,0.6263249,139.58,139.55,0.66772742]
[1767937346650,4.0758747,139.58,139.55,0.66772742]
[1767937348541,2.83664585,139.58,139.55,0.66772742]
[1767937349738,0.6263249,139.58,139.55,0.66772742]
[1767937351358,2.87007528,139.59,139.55,0.66772742]
[1767937351659,10.03357079,139.6,139.56,0.66772742]
[1767937351834,4.81486284,139.59,139.56,0.66772742]
[1767937354353,10.03357079,139.6,139.56,0.66772742]
[1767937357558,2.49743402,139.59,139.56,0.66772742]
[1767937358149,0.65602792,139.58,139.55,0.69576442]
[1767937358361,2.21032095,139.58,139.55,0.69576442]
[1767937359160,2.90487481,139.59,139.55,0.69576442]
[1767937361640,10.06871277,139.59,139.55,0.69576442]
[1767937361938,0.25266154,139.58,139.55,0.69576442]
[1767937362756,2.90045589,139.57,139.54,23.2920051]
[1767937362961,2.87045587,139.57,139.54,23.2920051]
[1767937364157,17.90588612,139.62,139.55,0.69576442]
[1767937364362,7.02353783,139.61,139.57,0.69576442]
[1767937364861,0.69455386,139.59,139.57,0.69576442]
[1767937365159,0.69455386,139.59,139.56,0.69576442]
[1767937365762,2.90487481,139.6,139.56,0.69576442]
[1767937366163,0.22296152,139.59,139.56,0.69576442]
[1767937367150,10.06826115,139.6,139.56,0.69576442]
[1767937368366,7.8579402,139.6,139.56,0.69576442]
[1767937369446,10.06826115,139.6,139.56,0.69576442]
[1767937371766,7.8579402,139.6,139.56,0.69576442]
[1767937371960,10.06826115,139.6,139.56,0.69576442]
[1767937378351,4.82057594,139.59,139.56,0.69576442]
[1767937378550,4.79057593,139.59,139.57,0.69576442]
[1767937378874,4.76057592,139.59,139.57,0.69576442]
[1767937379074,7.19385839,139.59,139.57,0.69576442]
[1767937379270,2.43328247,139.59,139.57,0.69576442]
[1767937385976,2.21032095,139.59,139.57,0.69576442]
[1767937390878,7.03738479,139.59,139.57,0.69576442]
[1767937399586,4.82696939,139.58,139.57,0.69576442]
[1767937399964,7.03729034,139.59,139.57,0.69576442]
[1767937400286,0.25764791,139.57,139.55,0.67840227]
[1767937400478,2.43796885,139.57,139.55,0.67840227]
[1767937400874,2.21032095,139.57,139.55,0.67840227]
[1767937405367,7.0361293,139.58,139.55,0.67840227]
[1767937405779,2.21032095,139.57,139.55,0.67840227]
[1767937406598,2.43116211,139.58,139.55,0.67840227]
[1767937408496,3.67470275,139.58,139.55,0.67840227]
[1767937409693,0.22084116,139.58,139.55,0.67840227]
[1767937409995,8.50095153,139.58,139.55,0.67840227]
[1767937410167,3.67470275,139.58,139.55,0.67840227]
[1767937412094,7.16397856,139.59,139.55,0.67840227]
[1767937412304,8.28001452,139.58,139.55,0.67840227]
[1767937412475,3.45386159,139.58,139.55,0.67840227]
[1767937412898,3.45386159,139.58,139.54,29.76252091]
[1767937413098,10.61784015,139.59,139.54,29.76252091]
[1767937413399,8.27998228,139.58,139.54,29.76252091]
[1767937413694,3.45386159,139.58,139.54,29.76252091]
[1767937413999,3.45386159,139.58,139.55,0.71393841]
[1767937414812,3.55286159,139.58,139.55,0.71393841]
[1767937418497,3.45386159,139.57,139.55,0.71393841]
[1767937419615,3.42386159,139.57,139.55,0.71393841]
[1767937423806,3.55286159,139.58,139.55,0.71393841]
[1767937426526,3.45386159,139.57,139.55,0.71393841]
[1767937427807,4.01808867,139.57,139.54,23.31017909]
[1767937428014,0.10365227,139.56,139.54,22.59624068]
[1767937428314,3.45386159,139.57,139.54,23.31017909]
[1767937429812,10.61826216,139.58,139.54,23.31017909]
[1767937430110,0.53892634,139.57,139.54,23.31017909]
[1767937435315,5.36449876,139.57,139.54,23.31017909]
[1767937435517,0.53892634,139.57,139.54,23.31017909]
[1767937436615,5.36451474,139.57,139.54,23.31017909]
[1767937437814,3.45386159,139.56,139.54,0.71393841]
[1767937438112,3.45386159,139.57,139.54,0.71393841]
[1767937438315,3.55286159,139.57,139.54,0.71393841]
[1767937446920,0.099,139.57,139.54,0.71393841]
[1767937447221,8.3776477,139.57,139.54,0.71393841]
[1767937447518,3.55286159,139.57,139.54,0.71393841]
[1767937448429,0.099,139.57,139.54,0.71393841]
[1767937448725,8.37746525,139.57,139.54,0.71393841]
[1767937448916,3.55286159,139.57,139.54,0.71393841]
[1767937456037,10.71774744,139.57,139.54,0.71393841]
[1767937458941,3.55721686,139.55,139.52,0.71530048]
[1767937459239,3.45386159,139.54,139.52,0.71530048]
[1767937459917,3.45386159,139.53,139.52,0.71530048]
[1767937460726,3.45386159,139.54,139.52,0.71530048]
[1767937462219,3.45386159,139.53,139.52,0.71530048]
[1767937462420,3.45386159,139.53,139.51,0.71530048]
[1767937462621,3.56148547,139.53,139.5,0.91530048]
[1767937463237,10.72849353,139.53,139.5,0.91530048]
[1767937466453,3.45386159,139.52,139.5,0.91530048]
[1767937468651,9.48673705,139.53,139.5,0.91530048]
[1767937470943,9.91803951,139.53,139.5,0.91530048]
[1767937475033,2.21210511,139.52,139.5,0.91530048]
[1767937476151,9.37969498,139.52,139.5,0.91530048]
[1767937477155,0.099,139.51,139.5,0.2]
[1767937477335,2.31110511,139.51,139.49,0.2]
[1767937479244,9.47921057,139.51,139.49,0.2]
[1767937480632,9.44921058,139.51,139.49,0.2]
[1767937483460,9.44921058,139.51,139.49,1e-08]
[1767937489256,0.69335668,139.55,139.51,0.70354979]
[1767937489562,2.90546179,139.54,139.51,0.70354979]
[1767937490069,0.69335668,139.53,139.51,0.70354979]
[1767937490361,0.69335668,139.53,139.5,0.70354979]
[1767937497657,0.69335668,139.53,139.49,2.21210512]
[1767937497854,0.69335668,139.53,139.49,1e-08]
[1767937498175,0.69335668,139.53,139.5,2.21210511]
[1767937498849,0.69335668,139.53,139.5,9.38047791]
[1767937500572,0.69335668,139.53,139.5,2.21210511]
[1767937502889,5.50746433,139.54,139.51,0.71631273]
[1767937503089,7.71956944,139.54,139.51,0.71631273]
[1767937503391,2.90751244,139.54,139.51,0.71631273]
[1767937505391,0.69540733,139.53,139.5,2.92841784]
[1767937505699,0.69540733,139.53,139.5,0.71631273]
[1767937506087,2.21210511,139.54,139.5,7.88474637]
[1767937506284,7.03224292,139.54,139.51,0.71631273]
[1767937506499,3.87906416,139.54,139.5,7.16843364]
[1767937506802,2.90751244,139.57,139.52,2.21210511]
[1767937506980,2.21210511,139.54,139.5,9.38053875]
[1767937507501,2.90751244,139.55,139.5,9.38053875]
[1767937508105,2.86775552,139.54,139.49,2.21210512]
[1767937508401,0.65565041,139.54,139.49,2.21210512]
[1767937508593,2.86775552,139.54,139.49,2.21210512]
[1767937509178,0.65565041,139.54,139.49,2.21210512]
[1767937509876,0.65565041,139.54,139.5,7.16838234]
[1767937510801,2.86775552,139.54,139.5,7.16838234]
[1767937511002,2.86775552,139.54,139.49,9.38088619]
[1767937511800,0.65565041,139.54,139.49,9.38088619]
[1767937512611,7.16594912,139.55,139.5,9.38031326]
[1767937512901,10.03332932,139.56,139.51,2.21210511]
[1767937513082,0.65565041,139.56,139.52,2.21210511]
[1767937513396,10.03278884,139.57,139.52,2.21210511]
[1767937513997,0.65565041,139.56,139.52,2.21210511]
[1767937515218,2.86775552,139.56,139.51,2.21210511]
[1767937516506,2.86775552,139.56,139.51,9.37956059]
[1767937517504,0.65565041,139.54,139.5,9.38044269]
[1767937517686,2.86775552,139.54,139.5,9.38044269]
[1767937517892,0.65565041,139.54,139.5,9.38044269]
[1767937518316,0.65565041,139.55,139.51,9.37997537]
[1767937518688,5.47259486,139.55,139.51,9.37997537]
[1767937519216,0.65565041,139.55,139.51,9.37997537]
[1767937524812,0.65565041,139.55,139.49,1e-08]
[1767937524813,0.65565041,139.53,139.49,9.3810778]
[1767937525620,0.65565041,139.53,139.49,7.16897269]
[1767937533609,0.65565041,139.53,139.49,10.62475003]
[1767937537926,0.65565041,139.53,139.49,7.16897269]
[1767937538130,0.65565041,139.53,139.49,10.62475003]
[1767937547243,0.65565041,139.53,139.5,10.62419453]
[1767937547422,11.27771622,139.55,139.5,10.62419453]
[1767937547624,5.47090857,139.54,139.5,10.62419453]
[1767937547838,0.65595349,139.54,139.5,10.62419453]
[1767937549744,5.47268923,139.54,139.5,10.62419453]
[1767937550045,0.65595349,139.54,139.5,10.62419453]
[1767937550544,5.47286868,139.54,139.5,10.62419453]
[1767937551126,0.65595349,139.54,139.5,10.62419453]
[1767937551325,0.65595349,139.53,139.5,10.62419453]
[1767937551540,0.62595347,139.53,139.5,10.62419453]
[1767937551841,0.62595347,139.53,139.5,10.65419455]
[1767937552033,10.62176273,139.55,139.5,10.65419455]
[1767937552337,4.81713287,139.54,139.5,10.65419455]
[1767937552545,10.62176273,139.55,139.5,10.65419455]
[1767937552740,10.62176273,139.55,139.51,0.03000002]
[1767937553247,4.81717091,139.54,139.51,0.03000002]
[1767937553418,5.4731244,139.54,139.51,0.03000002]
[1767937553746,0.65595349,139.54,139.51,0.03000002]
[1767937554125,5.4721404,139.54,139.51,0.03000002]
[1767937554447,0.65595349,139.54,139.51,0.03000002]
[1767937554942,0.65595349,139.54,139.5,10.65417571]
[1767937555148,0.65595349,139.54,139.51,0.03000002]
[1767937555450,5.47196956,139.54,139.51,0.03000002]
[1767937556049,0.65595349,139.54,139.51,0.03000002]
[1767937559558,0.65595349,139.54,139.5,10.62420599]
[1767937560773,0.65595349,139.54,139.5,10.65420601]
[1767937560958,0.62595349,139.54,139.5,10.65420601]
[1767937562268,0.62595349,139.54,139.5,0.03000002]
[1767937563073,0.62595349,139.54,139.49,10.62475003]
[1767937568257,0.62595349,139.54,139.5,0.06000002]
[1767937568463,0.72308968,139.54,139.5,0.06000002]
[1767937569373,0.72308968,139.54,139.49,10.68475005]
[1767937569577,0.72308968,139.53,139.49,10.62475003]
[1767937574279,0.72308968,139.53,139.5,0.06000002]
[1767937574482,0.69308968,139.53,139.5,0.06000002]
[1767937575486,3.45577734,139.54,139.5,0.06000002]
[1767937576489,4.17886702,139.54,139.5,0.06000002]
[1767937582297,0.72308968,139.54,139.51,0.09000002]
[1767937582473,4.81598488,139.54,139.51,0.09000002]
[1767937589887,4.81598488,139.54,139.51,3.54577736]
[1767937591203,11.34485241,139.55,139.51,3.54577736]
[1767937592505,10.10025241,139.55,139.51,2.30117736]
[1767937592675,30.99281346,139.57,139.54,2.21117734]
[1767937592676,0.71906878,139.56,139.54,2.21117734]
[1767937593001,0.71906878,139.57,139.54,2.30117736]
[1767937593202,5.53595228,139.57,139.54,2.30117736]
[1767937593399,0.71906878,139.58,139.56,2.21117734]
[1767937595588,0.71906878,139.58,139.55,2.30117736]
[1767937602717,0.28432314,139.63,139.55,2.30117736]
[1767937602718,0.71906878,139.63,139.55,7.16567331]
[1767937602902,0.71906878,139.6,139.55,7.25567333]
[1767937603097,0.71906878,139.6,139.56,2.21117734]
[1767937603408,0.71906878,139.6,139.57,2.21117734]
[1767937603914,0.71906878,139.6,139.58,7.16435019]
[1767937607216,0.71906878,139.61,139.58,7.25435021]
[1767937609208,0.71906878,139.61,139.58,0.09000002]
[1767937609414,0.71906878,139.61,139.57,2.21117734]
[1767937610418,0.71906878,139.61,139.58,7.16435019]
[1767937610596,0.71906878,139.61,139.59,2.21117734]
[1767937610991,0.71906878,139.63,139.59,2.21117734]
[1767937611409,0.71906878,139.63,139.59,2.30117736]
[1767937612100,2.93024612,139.63,139.59,0.09000002]
[1767937612699,0.71906878,139.62,139.59,0.09000002]
[1767937613098,0.71906878,139.61,139.56,25.07798059]
[1767937613299,0.71906878,139.6,139.56,27.37915795]
[1767937613495,0.71906878,139.6,139.57,0.09000002]
[1767937613817,2.93024612,139.61,139.57,0.09000002]
[1767937617117,0.71906878,139.61,139.57,2.30117736]
[1767937617421,0.71906878,139.61,139.57,9.46563003]
[1767937620713,0.71906878,139.59,139.56,7.16504325]
[1767937624722,0.71906878,139.59,139.56,9.37622059]
[1767937625112,0.71906878,139.59,139.56,9.46622061]
[1767937625313,0.71906878,139.59,139.56,7.25504327]
[1767937625512,0.71906878,139.59,139.56,9.46622061]
[1767937626830,9.37403947,139.61,139.56,9.46622061]
[1767937627034,0.65428598,139.6,139.57,2.30117736]
[1767937628717,0.65428598,139.6,139.57,9.46596238]
[1767937634339,2.86546332,139.6,139.55,13.17000002]
[1767937634531,0.72094565,139.59,139.56,0.09000002]
[1767937634739,0.72094565,139.59,139.55,15.38117736]
[1767937636030,0.72094565,139.59,139.55,22.54689936]
[1767937637542,0.72094565,139.58,139.54,9.46758125]
[1767937641350,0.72094565,139.58,139.54,7.25640391]
[1767937641530,0.72094565,139.58,139.54,9.46758125]
[1767937645368,0.72094565,139.58,139.54,7.16640389]
[1767937645369,0.72094565,139.57,139.54,7.16640389]
[1767937645560,0.72094565,139.56,139.52,2.30117736]
[1767937645733,0.72094565,139.55,139.52,0.09000002]
[1767937645928,0.69094566,139.55,139.52,0.09000002]
[1767937646553,0.69094566,139.55,139.52,7.25734692]
[1767937653361,0.66094567,139.55,139.52,7.25734692]
[1767937654055,25.07294359,139.6,139.53,0.65711307]
[1767937654249,2.21117734,139.57,139.53,0.65711307]
[1767937654647,3.45401436,139.57,139.53,0.65711307]
[1767937656058,0.65683615,139.56,139.53,7.82359281]
[1767937663770,4.11085051,139.56,139.53,7.82359281]
[1767937664344,0.65683615,139.56,139.53,7.82359281]
[1767937667067,0.65683615,139.56,139.53,6.44147974]
[1767937667277,0.65683615,139.56,139.53,5.63426156]
[1767937667471,3.55301436,139.57,139.54,0.65711307]
[1767937670748,3.45401436,139.56,139.54,0.65711307]
[1767937671470,3.45401436,139.56,139.53,6.29137463]
[1767937671471,4.00627214,139.56,139.53,6.29137463]
[1767937672557,0.55225778,139.56,139.53,0.65711307]
[1767937674285,0.55225778,139.56,139.53,7.82377033]
[1767937674582,4.01085051,139.57,139.54,0.65711307]
[1767937676977,0.55683615,139.57,139.54,0.65711307]
[1767937677175,0.55683615,139.57,139.54,7.16640348]
[1767937678083,4.01085051,139.59,139.55,0.65711307]
[1767937678271,0.099,139.58,139.55,0.65711307]
[1767937680262,3.45401436,139.59,139.56,0.65711307]
[1767937680468,0.55683615,139.6,139.56,0.65711307]
[1767937680777,5.36338316,139.6,139.57,0.65711307]
[1767937681176,0.55683615,139.6,139.57,0.65711307]
[1767937681883,0.55683615,139.62,139.59,0.65711307]
[1767937682075,4.01085051,139.62,139.59,0.65711307]
[1767937682271,17.09085051,139.63,139.59,0.65711307]
[1767937682469,0.55683615,139.63,139.59,0.65711307]
[1767937682671,0.55683615,139.63,139.6,0.67537894]
[1767937683064,0.55683615,139.63,139.59,3.45401436]
[1767937683272,0.55683615,139.63,139.58,3.45401436]
[1767937683469,0.55683615,139.63,139.59,10.61772213]
[1767937684274,0.55683615,139.63,139.6,0.67537894]
[1767937685183,4.01085051,139.64,139.6,0.67537894]
[1767937686971,4.01085051,139.64,139.61,0.67537894]
[1767937687177,4.01085051,139.64,139.61,0.61537894]
[1767937692696,3.45401436,139.63,139.6,0.66631589]
[1767937696195,0.61683615,139.64,139.6,0.66631589]
[1767937696399,4.07085051,139.64,139.61,0.66631589]
[1767937701400,0.099,139.63,139.61,0.66631589]
[1767937701892,0.099,139.63,139.6,0.66631589]
[1767937702100,3.55301436,139.63,139.6,0.66631589]
[1767937705680,0.61165778,139.62,139.58,10.61819484]
[1767937705872,0.61165778,139.62,139.59,3.45401436]
[1767937708509,0.61165778,139.62,139.58,7.16418048]
[1767937708681,0.61165778,139.62,139.59,3.45401436]
[1767937708884,11.23232905,139.64,139.6,0.66631589]
[1767937709294,0.099,139.63,139.59,4.12033025]
[1767937712902,0.61165778,139.62,139.58,11.32611506]
[1767937713102,4.07085051,139.63,139.59,0.70792022]